fUSD/lending_fUSD_20240227
["ID","MTS","AMOUNT","RATE_DAILY","PERIOD"]
[315415527,1709020248948,-500.0,0.00023798,2]
[315415529,1709020248957,-500.0,0.00023798,2]
[315415531,1709020248966,-522.20316603,0.00023798,2]
[315415533,1709020248975,-500.0,0.00023798,2]
[315415535,1709020248985,-521.52601567,0.00023798,2]
[315415537,1709020248995,-187.64661288,0.00023798,2]
[315415539,1709020249004,-500.0,0.00023798,2]
[315415541,1709020249014,-500.0,0.00023798,2]
[315415542,1709020249024,-351.10981106,0.00023798,2]
[315415543,1709020249037,-159.56774983,0.00023798,2]
[315415544,1709020249047,-500.0,0.00023798,2]
[315415545,1709020249057,-500.0,0.00023798,2]
[315415546,1709020249067,-500.0,0.00023798,2]
[315415547,1709020249077,-520.69492282,0.00023798,2]
[315415548,1709020249088,-31.80584469,0.00023798,2]
[315415569,1709020249286,-0.77498559,0.00023226,2]
[315415571,1709020249298,-358.703249,0.00023226,2]
[315415573,1709020249307,-500.0,0.00023227,2]
[315415576,1709020249317,-468.19415531,0.00023798,2]
[315415578,1709020249326,-500.0,0.00023798,2]
[315415580,1709020249335,-500.0,0.00023798,2]
[315415582,1709020249345,-515.57184997,0.00023798,2]
[315415584,1709020249354,-500.0,0.00023798,2]
[315415586,1709020249365,-500.0,0.00023798,2]
[315415588,1709020249374,-500.0,0.00023798,2]
[315415590,1709020249383,-522.1004222,0.00023798,2]
[315415592,1709020249393,-500.0,0.00023798,2]
[315415594,1709020249402,-570.71976611,0.00023798,2]
[315415596,1709020249412,-500.0,0.00023798,2]
[315415598,1709020249421,-501.65,0.00023798,2]
[315415600,1709020249430,-500.0,0.00023798,2]
[315415602,1709020249439,-533.83453467,0.00023798,2]
[315415603,1709020249448,-500.0,0.00023798,2]
[315415605,1709020249457,-500.0,0.00023798,2]
[315415606,1709020249467,-500.0,0.00023798,2]
[315415607,1709020249476,-649.48368824,0.00023798,2]
[315415608,1709020249486,-1137.91640196,0.00023798,2]
[315415609,1709020249505,-272.59359804,0.00023798,2]
[315415610,1709020249514,-119.70130573,0.00023798,2]
[315415611,1709020249527,-380.29869427,0.00023798,2]
[315415612,1709020249537,-500.0,0.00023798,2]
[315415613,1709020249546,-138.21486442,0.00023798,2]
[315415614,1709020249558,-380.94622613,0.00023798,2]
[315415615,1709020249567,-500.0,0.00023798,2]
[315415616,1709020249577,-500.0,0.00023798,2]
[315415617,1709020249587,-167.20377387,0.00023798,2]
[315415618,1709020249601,-332.79622613,0.00023798,2]
[315415619,1709020249610,-162.33925655,0.00023798,2]
[315415620,1709020249624,-337.66074345,0.00023798,2]
[315415621,1709020249633,-396.26089572,0.00023798,2]
[315415622,1709020249643,-500.0,0.00023798,2]
[315415623,1709020249653,-500.0,0.00023798,2]
[315415624,1709020249662,-496.8580265,0.00023798,2]
[315415625,1709020249674,-32.0748973,0.00023798,2]
[315415626,1709020249683,-467.9251027,0.00023798,2]
[315415627,1709020249694,-32.0748973,0.00023798,2]
[315415628,1709020249703,-349.79917784,0.00023798,2]
[315415629,1709020249714,-179.52244848,0.00023798,2]
[315415630,1709020249723,-500.0,0.00023798,2]
[315415631,1709020249733,-501.75184341,0.00023798,2]
[315415632,1709020249743,-500.0,0.00023798,2]
[315415633,1709020249753,-556.23212712,0.00023798,2]
[315415634,1709020249762,-500.0,0.00023798,2]
[315415635,1709020249771,-150.05725991,0.00023798,2]
[315415636,1709020249780,-224.72526069,0.00023798,2]
[315415637,1709020249790,-500.0,0.00023798,2]
[315415638,1709020249800,-500.0,0.00023798,2]
[315415639,1709020249808,-500.0,0.00023798,2]
[315415640,1709020249818,-1108.04,0.00023798,2]
[315415641,1709020249827,-500.0,0.00023798,2]
[315415642,1709020249836,-500.0,0.00023798,2]
[315415643,1709020249845,-500.0,0.00023798,2]
[315415644,1709020249854,-500.0,0.00023798,2]
[315415645,1709020249864,-500.0,0.00023798,2]
[315415646,1709020249873,-500.0,0.00023798,2]
[315415647,1709020249882,-541.7667268,0.00023798,2]
[315415648,1709020249892,-500.0,0.00023798,2]
[315415649,1709020249910,-500.0,0.00023798,2]
[315415650,1709020249921,-510.61117431,0.00023798,2]
[315415651,1709020249930,-500.0,0.00023798,2]
[315415652,1709020249940,-500.0,0.00023798,2]
[315415654,1709020249949,-500.0,0.00023798,2]
[315415656,1709020249958,-500.0,0.00023798,2]
[315415657,1709020249968,-500.0,0.00023798,2]
[315415659,1709020249977,-500.0,0.00023798,2]
[315415661,1709020249987,-530.40664704,0.00023798,2]
[315415663,1709020249995,-500.0,0.00023798,2]
[315415665,1709020250003,-500.0,0.00023798,2]
[315415667,1709020250011,-500.0,0.00023798,2]
[315415669,1709020250020,-500.0,0.00023798,2]
[315415671,1709020250029,-500.0,0.00023798,2]
[315415673,1709020250038,-500.0,0.00023798,2]
[315415675,1709020250047,-500.0,0.00023798,2]
[315415677,1709020250057,-500.0,0.00023798,2]
[315415679,1709020250066,-500.0,0.00023798,2]
[315415681,1709020250076,-500.0,0.00023798,2]
[315415683,1709020250089,-500.0,0.00023798,2]
[315415685,1709020250099,-500.0,0.00023798,2]
[315415687,1709020250108,-500.0,0.00023798,2]
[315415689,1709020250117,-500.0,0.00023798,2]
[315415691,1709020250126,-160.03638502,0.00023798,2]
[315415693,1709020250136,-500.0,0.00023798,2]
[315415695,1709020250145,-2355.58,0.00023798,2]
[315415697,1709020250155,-500.0,0.00023798,2]
[315415699,1709020250165,-500.0,0.00023798,2]
[315415701,1709020250174,-500.0,0.00023798,2]
[315415703,1709020250183,-500.0,0.00023798,2]
[315415705,1709020250193,-500.0,0.00023798,2]
[315415707,1709020250202,-500.0,0.00023798,2]
[315415709,1709020250212,-500.0,0.00023798,2]
[315415711,1709020250220,-500.0,0.00023798,2]
[315415713,1709020250229,-500.0,0.00023798,2]
[315415715,1709020250240,-500.0,0.00023798,2]
[315415718,1709020250250,-500.0,0.00023798,2]
[315415720,1709020250261,-500.0,0.00023798,2]
[315415722,1709020250271,-500.0,0.00023798,2]
[315415724,1709020250281,-500.0,0.00023798,2]
[315415726,1709020250293,-500.0,0.00023798,2]
[315415728,1709020250516,-500.0,0.00023798,2]
[315415729,1709020250527,-500.0,0.00023798,2]
[315415730,1709020250537,-586.94,0.00023798,2]
[315415731,1709020250550,-4188.49,0.00023798,2]
[315415732,1709020250560,-500.0,0.00023798,2]
[315415733,1709020250570,-500.0,0.00023798,2]
[315415734,1709020250580,-484.43763242,0.00023798,2]
[315415735,1709020250590,-500.0,0.00023798,2]
[315415736,1709020250600,-500.0,0.00023798,2]
[315415737,1709020250609,-602.87,0.00023798,2]
[315415738,1709020250618,-500.0,0.00023798,2]
[315415739,1709020250628,-571.83983783,0.00023798,2]
[315415740,1709020250637,-500.0,0.00023798,2]
[315415741,1709020250646,-855.36,0.00023798,2]
[315415742,1709020250656,-500.0,0.00023798,2]
[315415743,1709020250666,-500.0,0.00023798,2]
[315415744,1709020250675,-500.0,0.00023798,2]
[315415745,1709020250685,-500.0,0.00023798,2]
[315415746,1709020250694,-500.0,0.00023798,2]
[315415747,1709020250704,-500.0,0.00023798,2]
[315415748,1709020250713,-500.0,0.00023798,2]
[315415749,1709020250723,-500.0,0.00023798,2]
[315415750,1709020250733,-500.0,0.00023798,2]
[315415751,1709020250743,-958.17,0.00023798,2]
[315415752,1709020250753,-270.30324049,0.00023798,2]
[315415753,1709020250762,-500.0,0.00023798,2]
[315415754,1709020250772,-2851.52,0.00023798,2]
[315415755,1709020250781,-500.0,0.00023798,2]
[315415756,1709020250790,-500.0,0.00023798,2]
[315415757,1709020250800,-500.0,0.00023798,2]
[315415758,1709020250809,-500.0,0.00023798,2]
[315415759,1709020250819,-201.22286112,0.00023798,2]
[315415760,1709020250833,-622.28713888,0.00023798,2]
[315415761,1709020250843,-500.0,0.00023798,2]
[315415762,1709020250852,-397.16998218,0.00023798,2]
[315415763,1709020250864,-102.83001782,0.00023798,2]
[315415764,1709020250874,-169.00504013,0.00023798,2]
[315415765,1709020250886,-330.99495987,0.00023798,2]
[315415766,1709020250896,-509.24,0.00023798,2]
[315415767,1709020250906,-500.0,0.00023798,2]
[315415768,1709020250915,-500.0,0.00023798,2]
[315415769,1709020250925,-500.0,0.00023798,2]
[315415770,1709020250934,-500.0,0.00023798,2]
[315415771,1709020250944,-663.83,0.00023798,2]
[315415772,1709020250954,-474.17224097,0.00023798,2]
[315415773,1709020250964,-500.0,0.00023798,2]
[315415774,1709020250975,-500.0,0.00023798,2]
[315415775,1709020250985,-500.0,0.00023798,2]
[315415776,1709020250994,-206.57237556,0.00023798,2]
[315415777,1709020251007,-259.94309149,0.00023798,2]
[315415778,1709020251017,-390.61591098,0.00023798,2]
[315415779,1709020251030,-109.38408902,0.00023798,2]
[315415780,1709020251040,-500.0,0.00023798,2]
[315415781,1709020251052,-500.0,0.00023798,2]
[315415782,1709020251064,-139.51972544,0.00023798,2]
[315415783,1709020251106,-278.02097649,0.00023798,2]
[315415784,1709020251842,-162.84405317,0.00020392,2]
[315415785,1709020251852,-465.83846625,0.00023226,2]
[315415786,1709020251861,-15.60566524,0.00023227,2]
[315415787,1709020252321,-469.96562239,0.00020392,2]
[315415788,1709020252331,-2047.92030509,0.000229,2]
[315415789,1709020252344,-13293.01943978,0.000229,2]
[315415790,1709020252360,-2571.29196281,0.000229,2]
[315415791,1709020252372,-2197.54165776,0.000229,2]
[315415792,1709020252388,-2455.28913456,0.000229,2]
[315415793,1709020252397,-309.51847398,0.00023225,2]
[315415794,1709020252406,-484.39433476,0.00023227,2]
[315415795,1709020252415,-500.0,0.00023227,2]
[315415796,1709020252424,-500.0,0.00023227,2]
[315415797,1709020252433,-1067.07766102,0.00023592,2]
[315415798,1709020252442,-500.0,0.00023698,2]
[315415799,1709020252451,-500.0,0.00023698,2]
[315415800,1709020252460,-500.0,0.00023698,2]
[315415801,1709020252469,-500.0,0.00023698,2]
[315415802,1709020252478,-500.0,0.00023698,2]
[315415803,1709020252488,-213.76,0.00023758,2]
[315415804,1709020252497,-567.67496797,0.00023759,2]
[315415805,1709020252506,-500.0,0.00023796,2]
[315415806,1709020252515,-500.0,0.00023796,2]
[315415807,1709020252525,-82.45929807,0.00023798,2]
[315415808,1709020252534,-500.0,0.00023798,2]
[315415809,1709020252543,-768.44,0.00023798,2]
[315415810,1709020252551,-500.0,0.00023798,2]
[315415811,1709020252560,-271.44,0.00023798,2]
[315415812,1709020252569,-500.0,0.00023798,2]
[315415813,1709020252578,-500.0,0.00023798,2]
[315415814,1709020252588,-502.13,0.00023798,2]
[315415815,1709020252597,-500.0,0.00023798,2]
[315415816,1709020252606,-500.0,0.00023798,2]
[315415817,1709020252615,-500.0,0.00023798,2]
[315415818,1709020252624,-500.0,0.00023798,2]
[315415819,1709020252634,-500.0,0.00023798,2]
[315415820,1709020252642,-500.0,0.00023798,2]
[315415821,1709020252652,-500.0,0.00023798,2]
[315415822,1709020252661,-500.0,0.00023798,2]
[315415823,1709020252670,-500.0,0.00023798,2]
[315415824,1709020252679,-1089.59,0.00023798,2]
[315415825,1709020252689,-500.0,0.00023798,2]
[315415826,1709020252698,-500.0,0.00023798,2]
[315415827,1709020252708,-4019.78575155,0.00023798,2]
[315415828,1709020252717,-500.0,0.00023798,2]
[315415829,1709020252726,-4019.7857515,0.00023798,2]
[315415830,1709020252735,-500.0,0.00023798,2]
[315415831,1709020252746,-500.0,0.00023798,2]
[315415832,1709020252755,-500.0,0.00023798,2]
[315415833,1709020252764,-4019.7857515,0.00023798,2]
[315415834,1709020252773,-500.0,0.00023798,2]
[315415835,1709020252782,-2090.94377728,0.00023798,2]
[315415836,1709020290639,-433.77264747,0.00023798,2]
[315415837,1709020290661,-459.5785968,0.00023798,2]
[315415838,1709020290686,-334.58939694,0.00023227,2]
[315415839,1709020290699,-165.41060306,0.00023227,2]
[315415840,1709020290710,-286.69347369,0.00023798,2]
[315415846,1709020912198,3105.99536201,0.0003,120]
[315415850,1709021159116,-155.01411888,0.00018638,2]
[315415851,1709021198100,-155.0,0.00018637,2]
[315415852,1709021198123,-46.01656946,0.00018637,2]
[315415853,1709021230151,-364.79470807,0.00018637,2]
[315415854,1709021231108,-545.03236229,0.00018637,2]
[315415855,1709021231137,-86.69454824,0.00018637,2]
[315415856,1709021231157,-322.6911436,0.00018637,2]
[315415857,1709021231180,-465.83846625,0.00018649,2]
[315415858,1709021231203,-585.12537476,0.0001865,2]
[315415859,1709021233106,-162.35494865,0.00018637,2]
[315415860,1709021240125,-159.17445876,0.00018637,2]
[315415861,1709021253105,-202.93895759,0.00018637,2]
[315415862,1709021352107,-192.15999995,0.00018358,2]
[315415879,1709021432086,-8.43467827,0.00018358,2]
[315415880,1709021432096,-891.12089677,0.00018358,2]
[315415881,1709021432106,-2274.95308109,0.00018637,2]
[315415882,1709021432116,-789.01462524,0.0001865,2]
[315415883,1709021432125,-460.30181207,0.00019899,2]
[315415884,1709021432135,-779.1781,0.000199,2]
[315415885,1709021432144,-203.0,0.00019936,2]
[315415886,1709021432154,-300.0,0.00019998,2]
[315415887,1709021432163,-199.17175651,0.00019998,2]
[315415888,1709021432175,-54.82824349,0.00019998,2]
[315415889,1709021432184,-150.0,0.00019998,2]
[315415890,1709021432194,-150.0,0.00019998,2]
[315415891,1709021432203,-300.0,0.00019999,2]
[315415892,1709021432212,-900.40662794,0.0002,2]
[315415926,1709021438066,-755.87166152,0.0002,2]
[315415927,1709021438076,-2595.04483466,0.0002,2]
[315415928,1709021438087,-529.12011047,0.0002,2]
[315415929,1709021438099,-1034.187046,0.0002,2]
[315415930,1709021438110,-1465.62805132,0.0002,2]
[315415931,1709021438122,-3745.14137404,0.0002,2]
[315415932,1709021438134,-1089.51775594,0.0002,2]
[315415933,1709021438145,-1743.55775318,0.0002,2]
[315415934,1709021438157,-1403.88429592,0.0002,2]
[315415935,1709021438169,-4953.98260352,0.0002,2]
[315415936,1709021438178,-460.30181195,0.00020057,2]
[315415937,1709021438187,-465.83846625,0.00020213,2]
[315415938,1709021438196,-155.0,0.00020214,2]
[315415939,1709021438205,-460.30181195,0.00020215,2]
[315415940,1709021438215,-150.99,0.00020215,2]
[315415941,1709021438223,-311.27296425,0.00020373,2]
[315415942,1709021438249,-149.0288477,0.00020373,2]
[315415943,1709021438259,-288.10350337,0.00020393,2]
[315415944,1709021438270,-39.83649663,0.00020393,2]
[315415945,1709021438281,-500.0,0.00020399,2]
[315415946,1709021438290,-171.72,0.00020441,2]
[315415947,1709021438299,-311.69,0.00020446,2]
[315415948,1709021438308,-499.99,0.00020446,2]
[315415949,1709021438318,-1143.85,0.00020513,2]
[315415950,1709021438328,-2538.97,0.00020515,2]
[315415951,1709021438337,-907.83,0.00020528,2]
[315415952,1709021438346,-460.30181195,0.00020531,2]
[315415953,1709021438355,-250.0,0.00020538,2]
[315415954,1709021438364,-1136.01242181,0.00020548,2]
[315415955,1709021438377,-321.13,0.00020548,2]
[315415959,1709021438411,-542.85757819,0.00020548,2]
[315415961,1709021438424,-93.78943556,0.00020663,2]
[315415963,1709021438435,-2392.36310128,0.00020663,2]
[315415966,1709021438448,-3365.46718033,0.00020663,2]
[315415969,1709021438473,-1840.01178555,0.00020663,2]
[315415971,1709021438485,-1399.86449776,0.00020663,2]
[315415975,1709021438497,-1170.25656351,0.00020663,2]
[315415977,1709021438508,-13638.24743601,0.00020663,2]
[315415978,1709021438517,-460.30181195,0.00020689,2]
[315415979,1709021438526,-2201.23,0.00020741,2]
[315415980,1709021438538,-159.38,0.00020795,2]
[315415981,1709021438547,-460.30181195,0.00020847,2]
[315415983,1709021438557,-322.6911436,0.00020912,2]
[315415985,1709021438566,-159.38,0.0002095,2]
[315415987,1709021438575,-460.30181195,0.00021005,2]
[315415989,1709021438584,-159.38,0.00021105,2]
[315415991,1709021438593,-460.30181195,0.00021163,2]
[315415993,1709021438602,-203.0,0.00021228,3]
[315415995,1709021438611,-159.38,0.00021259,2]
[315415997,1709021438620,-883.21,0.00021279,2]
[315415999,1709021438630,-168.79,0.0002129,2]
[315416001,1709021438639,-460.30181195,0.00021321,2]
[315416003,1709021438648,-672.06,0.00021352,2]
[315416005,1709021438657,-159.38,0.00021414,2]
[315416007,1709021438666,-460.30181195,0.00021478,2]
[315416009,1709021438675,-169.67,0.00021498,2]
[315416011,1709021438685,-35565.84,0.00021498,2]
[315416013,1709021438694,-907.83,0.00021555,2]
[315416015,1709021438704,-155.0,0.00021568,2]
[315416017,1709021438713,-159.38,0.00021569,2]
[315416019,1709021438723,-150.48700375,0.00021606,2]
[315416021,1709021438732,-2294.899,0.00021608,2]
[315416023,1709021438741,-1044.953,0.00021608,2]
[315416025,1709021438750,-460.30181195,0.00021636,2]
[315416027,1709021438760,-185.74,0.00021661,2]
[315416029,1709021438770,-159.38,0.00021724,2]
[315416031,1709021438781,-300.0,0.00021776,2]
[315416033,1709021438790,-460.30181195,0.00021794,2]
[315416035,1709021438800,-5520.20100123,0.000218,2]
[315416103,1709021439482,150.0,0.00017,2]
[315416214,1709021440753,-832.339,0.000218,2]
[315416215,1709021440765,-560.98,0.000218,2]
[315416220,1709021440813,-1271.35588931,0.000218,2]
[315416222,1709021440823,-159.38,0.00021879,2]
[315416224,1709021440833,-187.5,0.000219,2]
[315416226,1709021440842,-1603.15,0.00021918,2]
[315416228,1709021440851,-537.61411069,0.00021918,3]
[315416230,1709021440863,-928.15096633,0.00021918,3]
[315416484,1709021443237,-34.23492298,0.00021918,3]
[315416486,1709021443247,-159.87,0.00021918,2]
[315416488,1709021443256,-237.13005046,0.00021943,2]
[315416493,1709021443298,-58.31194954,0.00021943,2]
[315416496,1709021443308,-150.057,0.00021943,2]
[315416497,1709021443317,-212.484,0.00021943,2]
[315416500,1709021443327,-206.393,0.00021943,2]
[315416502,1709021443336,-154.928,0.00021943,2]
[315416504,1709021443346,-151.626,0.00021943,2]
[315416505,1709021443355,-427.97,0.00021943,2]
[315416507,1709021443367,-956.0,0.00021943,2]
[315416509,1709021443376,-217.0,0.00021943,2]
[315416511,1709021443385,-437.112,0.00021943,2]
[315416513,1709021443394,-618.67,0.00021943,2]
[315416514,1709021443403,-1258.0,0.00021943,2]
[315416515,1709021443412,-303.034,0.00021943,2]
[315416516,1709021443421,-390.0,0.00021943,2]
[315416517,1709021443433,-298.0,0.00021943,2]
[315416518,1709021443441,-460.30181195,0.00021952,2]
[315416519,1709021443451,-265.97978914,0.00021978,2]
[315416520,1709021443461,-10963.21147187,0.00021979,2]
[315416521,1709021443470,-511.4995945,0.00021979,2]
[315416522,1709021443480,-151.37367908,0.00021979,2]
[315416523,1709021443489,-3946.75612992,0.0002198,2]
[315416524,1709021443499,-184.57772138,0.00021981,2]
[315416526,1709021443508,-1151.12360582,0.00021981,2]
[315416528,1709021443517,-151.37367908,0.00021981,2]
[315416530,1709021443526,-215.49033903,0.00021981,2]
[315416533,1709021443537,-291.10322901,0.00021981,2]
[315416534,1709021443547,-10963.21147187,0.00021981,2]
[315416536,1709021443556,-184.57772138,0.00021982,2]
[315416538,1709021443566,-190.4924768,0.00021982,2]
[315416541,1709021443575,-190.4924768,0.00021982,2]
[315416542,1709021443584,-10963.21147187,0.00021982,2]
[315416545,1709021443594,-414.40449814,0.00021983,2]
[315416547,1709021443603,-414.40449814,0.00021983,2]
[315416549,1709021443613,-414.40449814,0.00021983,2]
[315416551,1709021443622,-414.40449814,0.00021984,2]
[315416552,1709021443631,-3946.75612992,0.00021984,2]
[315416555,1709021443641,-511.4995945,0.00021984,2]
[315416557,1709021443650,-265.97978914,0.00021985,2]
[315416559,1709021443660,-184.57772138,0.00021986,2]
[315416561,1709021443670,-559.81390194,0.00021986,2]
[315416563,1709021443679,-190.4924768,0.00021986,2]
[315416565,1709021443689,-1151.12360582,0.00021986,2]
[315416566,1709021443698,-215.49033903,0.00021986,2]
[315416568,1709021443707,-184.57772138,0.00021987,2]
[315416571,1709021443717,-511.4995945,0.00021987,2]
[315416573,1709021443727,-3946.75612992,0.00021987,2]
[315416575,1709021443736,-151.37367908,0.00021988,2]
[315416577,1709021443746,-291.10322901,0.00021989,2]
[315416579,1709021443755,-215.49033903,0.00021989,2]
[315416581,1709021443765,-1420.83220682,0.00021989,2]
[315416583,1709021443775,-1420.83220682,0.0002199,2]
[315416585,1709021443786,-190.4924768,0.0002199,2]
[315416587,1709021443795,-559.81390194,0.0002199,2]
[315416589,1709021443804,-1151.12360582,0.0002199,2]
[315416591,1709021443813,-10963.21147187,0.0002199,2]
[315416593,1709021443822,-559.81390194,0.00021991,2]
[315416595,1709021443831,-1420.83220682,0.00021993,2]
[315416597,1709021443841,-151.37367908,0.00021995,2]
[315416599,1709021443850,-1151.12360582,0.00021995,2]
[315416601,1709021443859,-559.81390194,0.00021995,2]
[315416603,1709021443869,-511.4995945,0.00021996,2]
[315416605,1709021443878,-215.49033903,0.00021997,2]
[315416607,1709021443888,-1420.83220682,0.00021997,2]
[315416609,1709021443897,-3946.75612992,0.00021998,2]
[315416611,1709021443906,-177.9,0.00021998,2]
[315416613,1709021443915,-210.0,0.00021998,2]
[315416615,1709021443924,-210.0,0.00021998,2]
[315416617,1709021443933,-291.10322901,0.00021998,2]
[315416619,1709021443942,-265.97978914,0.00021999,2]
[315416621,1709021443952,-265.97978914,0.00021999,2]
[315416623,1709021443961,-291.10322901,0.00022,2]
[315416625,1709021443970,-7773.0,0.00022,2]
[315416647,1709021444166,-7806.88,0.00022,2]
[315416649,1709021444179,-750.0,0.00022,3]
[315416651,1709021444188,-318.54377392,0.00022,2]
[315416654,1709021444198,-150.0,0.00022,2]
[315416656,1709021444207,-519.22,0.00022,2]
[315416658,1709021444217,-187.23447567,0.00022,2]
[315416660,1709021444225,-412.83292075,0.00022087,3]
[315416661,1709021444235,-227.05810641,0.00022087,3]
[315416664,1709021444244,-1383.69567171,0.00022087,3]
[315416665,1709021444253,-283.06218252,0.00022099,3]
[315416668,1709021444263,-264.88512663,0.00022099,3]
[315416669,1709021444273,-256.70995756,0.00022099,3]
[315416671,1709021444282,-594.7242193,0.00022101,3]
[315416674,1709021444294,-159.34380324,0.00022104,3]
[315416676,1709021444303,-460.30181195,0.0002211,2]
[315416677,1709021444312,-9952.0241,0.0002214,2]
[315416679,1709021444321,-687.1202,0.0002214,2]
[315416682,1709021444330,-2500.0,0.0002214,2]
[315416684,1709021444339,-1143.85,0.00022157,2]
[315416686,1709021444348,-460.30181195,0.00022268,2]
[315416687,1709021444358,-231.63,0.0002234,2]
[315416690,1709021444367,-213.71,0.0002237,2]
[315416691,1709021444377,-460.30181195,0.00022426,2]
[315416693,1709021444386,-231.63,0.00022457,2]
[315416695,1709021444395,-5916.93148717,0.000225,2]
[315416697,1709021444404,-203.0,0.0002252,5]
[315416700,1709021444414,-177.9,0.00022546,2]
[315416702,1709021444424,-231.63,0.00022575,2]
[315416704,1709021444435,-907.83,0.00022581,2]
[315416705,1709021444444,-460.30181195,0.00022584,2]
[315416707,1709021444453,-231.63,0.00022692,2]
[315416709,1709021444462,-500.0,0.00022739,2]
[315416711,1709021444472,-500.0,0.00022739,2]
[315416713,1709021444481,-500.0,0.00022739,2]
[315416715,1709021444491,-500.0,0.00022739,2]
[315416717,1709021444500,-2216.69,0.00022739,2]
[315416719,1709021444510,-500.0,0.00022739,2]
[315416721,1709021444519,-500.0,0.00022739,2]
[315416723,1709021444528,-500.0,0.00022739,2]
[315416726,1709021444542,-500.0,0.00022739,2]
[315416727,1709021444551,-500.0,0.00022739,2]
[315416729,1709021444561,-500.0,0.00022739,2]
[315416731,1709021444570,-500.0,0.00022739,2]
[315416733,1709021444579,-500.0,0.00022739,2]
[315416735,1709021444588,-500.0,0.00022739,2]
[315416737,1709021444599,-2426.9,0.00022739,2]
[315416739,1709021444608,-500.0,0.00022739,2]
[315416741,1709021444618,-500.0,0.00022739,2]
[315416744,1709021444627,-500.0,0.00022739,2]
[315416746,1709021444636,-500.0,0.00022739,2]
[315416747,1709021444645,-500.0,0.00022739,2]
[315416749,1709021444654,-500.0,0.00022739,2]
[315416751,1709021444663,-661.2,0.00022739,2]
[315416753,1709021444673,-500.0,0.00022739,2]
[315416756,1709021444682,-500.0,0.00022739,2]
[315416757,1709021444692,-500.0,0.00022739,2]
[315416760,1709021444701,-500.0,0.00022739,2]
[315416762,1709021444711,-500.0,0.00022739,2]
[315416764,1709021444720,-752.13,0.00022739,2]
[315416766,1709021444729,-500.0,0.00022739,2]
[315416768,1709021444739,-5474.48,0.00022739,2]
[315416770,1709021444749,-1513.95,0.00022739,2]
[315416772,1709021444759,-500.0,0.00022739,2]
[315416774,1709021444769,-1292.97,0.00022739,2]
[315416776,1709021444779,-500.0,0.00022739,2]
[315416778,1709021444789,-500.0,0.00022739,2]
[315416780,1709021444799,-500.0,0.00022739,2]
[315416782,1709021444808,-500.0,0.00022739,2]
[315416784,1709021444817,-158.61,0.0002274,2]
[315416786,1709021444827,-150.4,0.0002274,2]
[315416788,1709021444836,-460.30181195,0.00022742,2]
[315416790,1709021444845,-2462.95995097,0.000228,2]
[315416792,1709021444855,-231.63,0.0002281,2]
[315416794,1709021444864,-182.54,0.00022889,2]
[315416796,1709021444874,-177.44447484,0.00022898,2]
[315416800,1709021444883,-500.0,0.00022898,2]
[315416802,1709021444892,-500.0,0.00022898,2]
[315416804,1709021444901,-500.0,0.00022898,2]
[315416806,1709021444910,-500.0,0.00022898,2]
[315416808,1709021444920,-500.0,0.00022898,2]
[315416810,1709021444929,-500.0,0.00022898,2]
[315416812,1709021444938,-500.0,0.00022898,2]
[315416814,1709021444948,-500.0,0.00022898,2]
[315416816,1709021444957,-10000.0,0.00022898,2]
[315416818,1709021444966,-5000.0,0.00022899,2]
[315416820,1709021444976,-8802.08035294,0.00022899,2]
[315416822,1709021444986,-500.0,0.00022899,2]
[315416824,1709021444995,-500.0,0.00022899,2]